fUSD/lending_fUSD_20260401
["ID","MTS","AMOUNT","RATE_DAILY","PERIOD"]
[419180726,1775008258470,-825.0,0.00032181,60]
[419180727,1775008258480,-397.0,0.00032207,2]
[419180728,1775008258489,-2805.0,0.00032215,3]
[419180729,1775008258500,-397.0,0.00032259,7]
[419180730,1775008258510,-1014.36,0.00032308,120]
[419180731,1775008258520,-393.70246722,0.00032329,7]
[419180732,1775008258530,-397.0,0.00032371,2]
[419180733,1775008258540,-1014.36,0.00032596,120]
[419180734,1775008258550,-397.0,0.00032651,2]
[419180735,1775008258560,-404.31468,0.0003266,33]
[419180736,1775008258570,-404.31467,0.0003266,33]
[419180737,1775008258580,-299.04270032,0.000327,2]
[419180738,1775008258590,-400.0,0.00032708,2]
[419180739,1775008258600,-800.0,0.00032726,21]
[419180740,1775008258609,-152.0,0.0003273,12]
[419180741,1775008258619,-409.0,0.00032773,2]
[419180742,1775008258629,-397.0,0.00032776,2]
[419180743,1775008258640,-200.0,0.000328,11]
[419180744,1775008258650,-548.0,0.00032857,2]
[419180745,1775008258660,-1800.0,0.00032877,2]
[419180746,1775008258670,-1800.0,0.00032877,2]
[419180747,1775008258679,-1800.0,0.00032877,2]
[419180748,1775008258691,-1800.0,0.00032877,2]
[419180749,1775008258701,-1800.0,0.00032877,2]
[419180750,1775008258711,-1800.0,0.00032877,2]
[419180751,1775008258721,-1800.0,0.00032877,2]
[419180752,1775008258733,-1800.0,0.00032877,2]
[419180753,1775008258743,-1800.0,0.00032877,2]
[419180754,1775008258753,-1800.0,0.00032877,2]
[419180755,1775008258763,-1800.0,0.00032877,2]
[419180756,1775008258773,-1828.0,0.00032877,2]
[419180757,1775008258783,-1800.0,0.00032877,2]
[419180758,1775008258792,-1800.0,0.00032877,2]
[419180759,1775008258803,-1800.0,0.00032877,2]
[419180760,1775008258812,-1800.0,0.00032877,2]
[419180761,1775008258822,-1800.0,0.00032877,2]
[419180762,1775008258832,-1800.0,0.00032877,2]
[419180763,1775008258842,-1800.0,0.00032877,2]
[419180764,1775008258851,-1800.0,0.00032877,2]
[419180765,1775008258860,-1800.0,0.00032877,2]
[419180766,1775008258870,-1800.0,0.00032877,2]
[419180767,1775008258879,-1800.0,0.00032877,2]
[419180768,1775008258889,-1829.0,0.00032877,2]
[419180769,1775008258898,-866.0,0.00032877,15]
[419180770,1775008258908,-1014.36,0.00032885,120]
[419180771,1775008258918,-409.0,0.00032887,2]
[419180772,1775008258928,-164.40608598,0.0003289,7]
[419180773,1775008258938,-150.0,0.000329,8]
[419180774,1775008258948,-999.15405883,0.000329,2]
[419180775,1775008258957,-327.62966757,0.000329,2]
[419180776,1775008258966,-200.0,0.000329,12]
[419180777,1775008258976,-2666.91216588,0.000329,2]
[419180778,1775008258986,-5727.00358239,0.000329,2]
[419180779,1775008258996,-1000.0,0.0003297,2]
[419180780,1775008259006,-1000.0,0.0003297,2]
[419180781,1775008259017,-500.0,0.0003297,2]
[419180782,1775008259027,-500.0,0.0003297,2]
[419180783,1775008259036,-151.0,0.00032982,14]
[419180784,1775008259046,-432.594448,0.00032985,7]
[419180785,1775008259056,-432.594448,0.00032985,7]
[419180786,1775008259066,-432.594448,0.00032985,7]
[419180787,1775008259076,-432.594448,0.00032985,7]
[419180788,1775008259086,-151.0,0.00032985,7]
[419180789,1775008259096,-151.0,0.00032985,7]
[419180790,1775008259105,-200.0,0.00032985,30]
[419180791,1775008259115,-151.0,0.00032985,30]
[419180792,1775008259124,-3000.0,0.00032985,30]
[419180793,1775008259134,-520.0,0.00032985,30]
[419180794,1775008259143,-719.3559477,0.00032985,30]
[419180795,1775008259153,-500.0,0.00032985,30]
[419180796,1775008259164,-6888.0,0.00032985,30]
[419180797,1775008259174,-1030.0,0.00032985,30]
[419180798,1775008259184,-500.0,0.00032985,30]
[419180799,1775008259194,-156.587,0.00032985,30]
[419180800,1775008259203,-200.0,0.00032985,30]
[419180801,1775008259212,-2258.00809214,0.00032985,30]
[419180802,1775008259222,-539.24,0.00032985,30]
[419180803,1775008259231,-500.0,0.00032985,30]
[419180804,1775008259241,-7142.856,0.00032985,30]
[419180805,1775008259253,-500.0,0.00032985,30]
[419180806,1775008259263,-200.0,0.00032985,30]
[419180807,1775008259273,-518.5,0.00032985,30]
[419180808,1775008259283,-1068.11,0.00032985,30]
[419180809,1775008259294,-200.0,0.00032985,30]
[419180810,1775008259303,-162.380719,0.00032985,30]
[419180811,1775008259313,-559.19188,0.00032985,30]
[419180812,1775008259322,-500.0,0.00032985,30]
[419180813,1775008259332,-7407.141672,0.00032985,30]
[419180814,1775008259342,-200.0,0.00032985,30]
[419180815,1775008259351,-500.0,0.00032985,30]
[419180816,1775008259361,-537.6845,0.00032985,30]
[419180817,1775008259370,-1107.63007,0.00032985,30]
[419180818,1775008259380,-200.0,0.00032985,30]
[419180819,1775008259389,-168.3888056,0.00032985,30]
[419180820,1775008259400,-579.88197956,0.00032985,30]
[419180821,1775008259410,-500.0,0.00032985,30]
[419180822,1775008259419,-7681.20591386,0.00032985,30]
[419180823,1775008259428,-200.0,0.00032985,30]
[419180824,1775008259438,-500.0,0.00032985,30]
[419180825,1775008259447,-1148.61238259,0.00032985,30]
[419180826,1775008259456,-557.5788265,0.00032985,30]
[419180827,1775008259466,-200.0,0.00032985,30]
[419180828,1775008259476,-500.0,0.00032985,30]
[419180829,1775008259486,-151.0,0.00032985,30]
[419180830,1775008259495,-200.0,0.00032985,30]
[419180831,1775008259504,-500.0,0.00032985,30]
[419180832,1775008259514,-151.0,0.00032985,30]
[419180833,1775008259524,-500.0,0.00032985,30]
[419180834,1775008259534,-200.0,0.00032985,30]
[419180835,1775008259543,-151.0,0.00032985,30]
[419180836,1775008259554,-500.0,0.00032985,30]
[419180837,1775008259563,-200.0,0.00032985,30]
[419180838,1775008259572,-151.0,0.00032985,30]
[419180839,1775008259582,-151.0,0.00032985,30]
[419180840,1775008259592,-500.0,0.00032985,30]
[419180841,1775008259601,-200.0,0.00032985,30]
[419180842,1775008259611,-156.587,0.00032985,30]
[419180843,1775008259620,-226.36329999,0.00032985,30]
[419180844,1775008259631,-162.380719,0.00032985,30]
[419180845,1775008259640,-500.0,0.00032985,30]
[419180846,1775008259650,-168.3888056,0.00032985,30]
[419180847,1775008259659,-500.0,0.00032985,30]
[419180848,1775008259668,-500.0,0.00032985,30]
[419180849,1775008259677,-151.0,0.00032985,30]
[419180850,1775008259688,-151.0,0.00032985,30]
[419180851,1775008259698,-500.0,0.00032985,30]
[419180852,1775008259707,-500.0,0.00032985,30]
[419180853,1775008259717,-151.0,0.00032985,30]
[419180854,1775008259732,-500.0,0.00032985,30]
[419180855,1775008259742,-218.40321003,0.00032985,30]
[419180856,1775008259751,-500.0,0.00032985,30]
[419180857,1775008259762,-2000.0,0.00032985,30]
[419180858,1775008259773,-500.0,0.00032985,30]
[419180859,1775008259783,-2043.95937522,0.00032985,30]
[419180860,1775008259793,-1639.26254045,0.00032985,30]
[419180861,1775008259802,-500.0,0.00032985,30]
[419180862,1775008259811,-500.0,0.00032985,30]
[419180863,1775008259821,-500.0,0.00032985,30]
[419180864,1775008259830,-220.0,0.00032985,30]
[419180865,1775008259840,-500.0,0.00032985,30]
[419180866,1775008259849,-151.0,0.00032985,30]
[419180867,1775008259859,-151.0,0.00032985,30]
[419180868,1775008259871,-151.0,0.00032985,30]
[419180869,1775008259881,-220.0,0.00032985,30]
[419180870,1775008259891,-151.0,0.00032985,30]
[419180871,1775008259900,-309.98111957,0.00032985,30]
[419180872,1775008259910,-1000.0,0.00032985,30]
[419180873,1775008259919,-200.0,0.00032985,30]
[419180874,1775008259928,-500.0,0.00032985,30]
[419180875,1775008259937,-1037.0,0.00032985,30]
[419180876,1775008259947,-200.0,0.00032985,30]
[419180877,1775008259958,-151.0,0.00032985,30]
[419180878,1775008259967,-1075.369,0.00032985,30]
[419180879,1775008259976,-200.0,0.00032985,30]
[419180880,1775008259986,-151.0,0.00032985,30]
[419180881,1775008259996,-1115.157653,0.00032985,30]
[419180882,1775008260005,-200.0,0.00032985,30]
[419180883,1775008260014,-151.0,0.00032985,30]
[419180884,1775008260023,-250.0,0.00032985,30]
[419180885,1775008260032,-151.0,0.00032985,30]
[419180886,1775008260042,-250.0,0.00032985,30]
[419180887,1775008260052,-250.0,0.00032985,30]
[419180888,1775008260062,-250.0,0.00032985,30]
[419180889,1775008260071,-151.0,0.00032985,30]
[419180890,1775008260080,-151.0,0.00032985,30]
[419180891,1775008260091,-160.0,0.00032985,30]
[419180892,1775008260100,-160.0,0.00032985,30]
[419180893,1775008260110,-151.0,0.00032985,30]
[419180894,1775008260119,-160.0,0.00032985,30]
[419180895,1775008260128,-156.587,0.00032985,30]
[419180896,1775008260137,-160.0,0.00032985,30]
[419180897,1775008260147,-162.380719,0.00032985,30]
[419180898,1775008260156,-168.3888056,0.00032985,30]
[419180899,1775008260166,-151.0,0.00032985,30]
[419180900,1775008260175,-151.0,0.00032985,30]
[419180901,1775008260184,-156.587,0.00032985,30]
[419180902,1775008260194,-151.0,0.00032985,30]
[419180903,1775008260203,-162.380719,0.00032985,30]
[419180904,1775008260213,-151.0,0.00032985,30]
[419180905,1775008260222,-500.0,0.00032985,30]
[419180906,1775008260231,-168.3888056,0.00032985,30]
[419180907,1775008260240,-518.5,0.00032985,30]
[419180908,1775008260256,-151.0,0.00032985,30]
[419180909,1775008260266,-537.6845,0.00032985,30]
[419180910,1775008260275,-557.5788265,0.00032985,30]
[419180911,1775008260284,-620.0,0.00032985,30]
[419180912,1775008260294,-2486.0,0.00032985,30]
[419180913,1775008260303,-642.94,0.00032985,30]
[419180914,1775008260312,-666.72878,0.00032985,30]
[419180915,1775008260322,-2486.0,0.00032985,30]
[419180916,1775008260332,-691.39774486,0.00032985,30]
[419180917,1775008260343,-2486.0,0.00032985,30]
[419180918,1775008260354,-2486.0,0.00032985,30]
[419180919,1775008260364,-716.97946142,0.00032985,30]
[419180920,1775008260374,-2486.0,0.00032985,30]
[419180921,1775008260384,-1221.88697738,0.00032985,30]
[419180922,1775008260393,-251.0,0.00032985,30]
[419180923,1775008260403,-260.287,0.00032985,30]
[419180924,1775008260412,-269.917619,0.00032985,30]
[419180925,1775008260422,-170.0,0.00032985,30]
[419180926,1775008260431,-176.29,0.00032985,30]
[419180927,1775008260441,-182.81273,0.00032985,30]
[419180928,1775008260451,-500.0,0.00032985,30]
[419180929,1775008260460,-189.57680101,0.00032985,30]
[419180930,1775008260470,-500.0,0.00032985,30]
[419180931,1775008260479,-196.59114265,0.00032985,30]
[419180932,1775008260488,-500.0,0.00032985,30]
[419180933,1775008260497,-203.86501493,0.00032985,30]
[419180934,1775008260507,-500.0,0.00032985,30]
[419180935,1775008260517,-211.40802048,0.00032985,30]
[419180936,1775008260527,-500.0,0.00032985,30]
[419180937,1775008260536,-219.23011724,0.00032985,30]
[419180938,1775008260546,-500.0,0.00032985,30]
[419180939,1775008260556,-227.34163157,0.00032985,30]
[419180940,1775008260565,-500.0,0.00032985,30]
[419180941,1775008260576,-235.75327194,0.00032985,30]
[419180942,1775008260586,-500.0,0.00032985,30]
[419180943,1775008260596,-244.476143,0.00032985,30]
[419180944,1775008260605,-500.0,0.00032985,30]
[419180945,1775008260614,-253.52176029,0.00032985,30]
[419180946,1775008260624,-500.0,0.00032985,30]
[419180947,1775008260633,-500.0,0.00032985,30]
[419180948,1775008260643,-500.0,0.00032985,30]
[419180949,1775008260652,-500.0,0.00032985,30]
[419180950,1775008260661,-500.0,0.00032985,30]
[419180951,1775008260671,-500.0,0.00032985,30]
[419180952,1775008260681,-151.0,0.00032985,30]
[419180953,1775008260690,-151.0,0.00032985,30]
[419180954,1775008260700,-151.0,0.00032985,30]
[419180955,1775008260709,-151.0,0.00032985,30]
[419180956,1775008260718,-151.0,0.00032985,30]
[419180957,1775008260727,-151.0,0.00032985,30]
[419180958,1775008260736,-151.0,0.00032985,30]
[419180959,1775008260746,-151.0,0.00032985,30]
[419180960,1775008260756,-151.0,0.00032985,30]
[419180961,1775008260766,-151.0,0.00032985,30]
[419180962,1775008260779,-151.0,0.00032985,30]
[419180963,1775008260789,-151.0,0.00032985,30]
[419180964,1775008260799,-151.0,0.00032985,30]
[419180965,1775008260809,-151.0,0.00032985,30]
[419180966,1775008260818,-151.0,0.00032985,30]
[419180967,1775008260827,-151.0,0.00032985,30]
[419180968,1775008260836,-151.0,0.00032985,30]
[419180969,1775008260846,-151.0,0.00032985,30]
[419180970,1775008260855,-151.0,0.00032985,30]
[419180971,1775008260864,-151.0,0.00032985,30]
[419180972,1775008260874,-500.0,0.00032989,30]
[419180973,1775008260885,-500.0,0.00032989,30]
[419180974,1775008260894,-500.0,0.00032989,120]
[419180975,1775008260904,-500.0,0.00032989,120]
[419180976,1775008260913,-500.0,0.00032989,120]
[419180977,1775008260923,-500.0,0.00032989,120]
[419180978,1775008260933,-500.0,0.00032989,120]
[419180979,1775008260943,-539.79,0.00032989,120]
[419180980,1775008260952,-500.0,0.00032989,120]
[419180981,1775008260961,-500.0,0.00032989,120]
[419180982,1775008260971,-500.0,0.00032989,120]
[419180983,1775008260980,-500.0,0.00032989,10]
[419180984,1775008260990,-500.0,0.00032989,10]
[419180985,1775008261000,-500.0,0.00032989,120]
[419180986,1775008261009,-500.0,0.00032989,120]
[419180987,1775008261019,-500.0,0.00032989,120]
[419180988,1775008261028,-500.0,0.00032989,120]
[419180989,1775008261037,-500.0,0.00032989,120]
[419180990,1775008261046,-500.0,0.00032989,120]
[419180991,1775008261056,-500.0,0.00032989,45]
[419180992,1775008261065,-500.0,0.00032989,45]
[419180993,1775008261074,-500.0,0.00032989,120]
[419180994,1775008261084,-500.0,0.00032989,120]
[419180995,1775008261092,-500.0,0.00032989,120]
[419180996,1775008261102,-500.0,0.00032989,120]
[419180997,1775008261111,-500.0,0.00032989,10]
[419180998,1775008261120,-500.0,0.00032989,10]
[419180999,1775008261129,-173.34235598,0.00032989,120]
[419181000,1775008261139,-500.0,0.00032989,120]
[419181001,1775008261148,-500.0,0.00032989,120]
[419181002,1775008261158,-500.0,0.00032989,120]
[419181003,1775008261167,-500.0,0.00032989,120]
[419181004,1775008261176,-500.0,0.00032989,120]
[419181005,1775008261185,-500.0,0.00032989,120]
[419181006,1775008261195,-500.0,0.00032989,30]
[419181007,1775008261204,-500.0,0.00032989,30]
[419181008,1775008261214,-500.0,0.00032989,120]
[419181009,1775008261223,-500.0,0.00032989,120]
[419181010,1775008261232,-553.83763425,0.00032989,120]
[419181011,1775008261242,-500.0,0.00032989,120]
[419181012,1775008261251,-513.17019501,0.00032989,120]
[419181013,1775008261260,-500.0,0.00032989,120]
[419181014,1775008261615,-500.0,0.00032989,120]
[419181015,1775008261631,-500.0,0.00032989,2]
[419181016,1775008261640,-500.0,0.00032989,2]
[419181017,1775008261649,-2500.0,0.00032989,2]
[419181018,1775008261658,-2500.0,0.00032989,2]
[419181019,1775008261667,-2500.0,0.00032989,2]
[419181020,1775008261677,-404.31468,0.0003299,37]
[419181021,1775008261686,-404.31467,0.0003299,37]
[419181022,1775008261695,-404.31467,0.0003299,37]
[419181023,1775008261704,-404.31468,0.0003299,37]
[419181024,1775008261713,-368.66437778,0.0003299,2]
[419181025,1775008261723,-151.0,0.00032997,7]
[419181026,1775008261732,-151.0,0.00032997,14]
[419181027,1775008261742,-500.0,0.00032999,30]
[419181028,1775008261750,-500.0,0.00032999,30]
[419181029,1775008261760,-500.0,0.00032999,30]
[419181030,1775008261769,-500.0,0.00032999,30]
[419181031,1775008261778,-500.0,0.00032999,30]
[419181032,1775008261787,-500.0,0.00032999,30]
[419181033,1775008261797,-590.46,0.00032999,30]
[419181034,1775008261807,-500.0,0.00032999,120]
[419181035,1775008261816,-500.0,0.00032999,120]
[419181036,1775008261825,-500.0,0.00032999,120]
[419181037,1775008261834,-500.0,0.00032999,120]
[419181038,1775008261844,-566.97722897,0.00032999,120]
[419181039,1775008261853,-500.0,0.00032999,120]
[419181040,1775008261863,-500.0,0.00032999,120]
[419181041,1775008261873,-500.0,0.00032999,10]
[419181042,1775008261882,-500.0,0.00032999,120]
[419181043,1775008261891,-500.0,0.00032999,10]
[419181044,1775008261901,-500.0,0.00032999,120]
[419181045,1775008261910,-500.0,0.00032999,10]
[419181046,1775008261921,-500.0,0.00032999,10]
[419181047,1775008261932,-500.0,0.00032999,10]
[419181048,1775008261941,-500.0,0.00032999,10]
[419181049,1775008261951,-500.0,0.00032999,10]
[419181050,1775008261960,-500.0,0.00032999,10]
[419181051,1775008261969,-500.0,0.00032999,120]
[419181052,1775008261978,-500.0,0.00032999,10]
[419181053,1775008261988,-500.0,0.00032999,120]
[419181054,1775008261996,-500.0,0.00032999,10]
[419181055,1775008262006,-500.0,0.00032999,120]
[419181056,1775008262015,-500.0,0.00032999,10]
[419181057,1775008262024,-500.0,0.00032999,120]
[419181058,1775008262033,-534.96280522,0.00032999,10]
[419181059,1775008262042,-500.0,0.00032999,120]
[419181060,1775008262050,-500.0,0.00032999,120]
[419181061,1775008262059,-500.0,0.00032999,120]
[419181062,1775008262068,-500.0,0.00032999,120]
[419181063,1775008262077,-500.0,0.00032999,120]
[419181064,1775008262086,-500.0,0.00032999,120]
[419181065,1775008262095,-332.17600438,0.00032999,120]
[419181066,1775008262104,-500.0,0.00032999,120]
[419181067,1775008262113,-500.0,0.00032999,120]
[419181068,1775008262123,-500.0,0.00032999,120]
[419181069,1775008262132,-500.0,0.00032999,120]
[419181070,1775008262142,-500.0,0.00032999,120]
[419181071,1775008262151,-500.0,0.00032999,120]
[419181072,1775008262162,-500.0,0.00032999,120]
[419181073,1775008262178,-600.87743374,0.00032999,120]
[419181074,1775008262189,-500.0,0.00032999,120]
[419181075,1775008262199,-500.0,0.00032999,120]
[419181076,1775008262209,-500.0,0.00032999,120]
[419181077,1775008262220,-500.0,0.00032999,120]
[419181078,1775008262231,-212.34445911,0.00032999,120]
[419181079,1775008262241,-500.0,0.00032999,45]
[419181080,1775008262252,-500.0,0.00032999,45]
[419181081,1775008262264,-500.0,0.00032999,45]
[419181082,1775008262274,-500.0,0.00032999,45]
[419181083,1775008262283,-500.0,0.00032999,45]
[419181084,1775008262293,-500.0,0.00032999,45]
[419181085,1775008262303,-500.0,0.00032999,45]
[419181086,1775008262312,-427.75484916,0.00032999,45]
[419181087,1775008262321,-500.0,0.00032999,120]
[419181088,1775008262331,-500.0,0.00032999,120]
[419181089,1775008262340,-500.0,0.00032999,120]
[419181090,1775008262350,-500.0,0.00032999,120]
[419181091,1775008262361,-500.0,0.00032999,120]
[419181092,1775008262371,-500.0,0.00032999,120]
[419181093,1775008262380,-500.0,0.00032999,120]
[419181094,1775008262390,-500.0,0.00032999,120]
[419181095,1775008262400,-500.0,0.00032999,120]
[419181096,1775008262411,-500.0,0.00032999,120]
[419181097,1775008262421,-500.0,0.00032999,120]
[419181098,1775008262431,-500.0,0.00032999,120]
[419181099,1775008262441,-500.0,0.00032999,120]
[419181100,1775008262453,-500.0,0.00032999,120]
[419181101,1775008262463,-500.0,0.00032999,120]
[419181102,1775008262473,-500.0,0.00032999,120]
[419181103,1775008262483,-539.86096787,0.00032999,120]
[419181104,1775008262494,-500.0,0.00032999,10]
[419181105,1775008262504,-401.75,0.00032999,10]
[419181106,1775008262514,-500.0,0.00032999,120]
[419181107,1775008262525,-500.0,0.00032999,120]
[419181108,1775008262535,-500.0,0.00032999,120]
[419181109,1775008262545,-500.0,0.00032999,120]
[419181110,1775008262555,-500.0,0.00032999,120]
[419181111,1775008262565,-500.0,0.00032999,120]
[419181112,1775008262575,-500.0,0.00032999,120]
[419181113,1775008262584,-500.0,0.00032999,120]
[419181114,1775008262594,-500.0,0.00032999,120]
[419181115,1775008262603,-500.0,0.00032999,120]
[419181116,1775008262613,-500.0,0.00032999,120]
[419181117,1775008262623,-500.0,0.00032999,120]
[419181118,1775008262632,-500.0,0.00032999,120]
[419181119,1775008262643,-500.0,0.00032999,120]
[419181120,1775008262652,-500.0,0.00032999,120]
[419181121,1775008262662,-500.0,0.00032999,120]
[419181122,1775008262672,-500.0,0.00032999,120]
[419181123,1775008262681,-500.0,0.00032999,120]
[419181124,1775008262691,-500.0,0.00032999,120]
[419181125,1775008262702,-500.0,0.00032999,120]
[419181126,1775008262711,-500.0,0.00032999,120]
[419181127,1775008262721,-500.0,0.00032999,120]
[419181128,1775008262733,-500.0,0.00032999,120]
[419181129,1775008262744,-500.0,0.00032999,120]
[419181130,1775008262755,-500.0,0.00032999,120]
[419181131,1775008262765,-500.0,0.00032999,120]
[419181132,1775008262776,-500.0,0.00032999,120]
[419181133,1775008262787,-500.0,0.00032999,120]
[419181134,1775008262798,-500.0,0.00032999,120]
[419181135,1775008262808,-500.0,0.00032999,120]
[419181136,1775008262818,-500.0,0.00032999,120]
[419181137,1775008262828,-500.0,0.00032999,120]
[419181138,1775008262838,-500.0,0.00032999,120]
[419181139,1775008262848,-500.0,0.00032999,120]
[419181140,1775008262860,-500.0,0.00032999,120]
[419181141,1775008262870,-500.0,0.00032999,120]
[419181142,1775008262879,-500.0,0.00032999,120]
[419181143,1775008262890,-511.80789898,0.00032999,120]
[419181144,1775008262899,-500.0,0.00032999,30]
[419181145,1775008262909,-500.0,0.00032999,30]
[419181146,1775008262919,-500.0,0.00032999,30]
[419181147,1775008262928,-500.0,0.00032999,30]
[419181148,1775008262938,-500.0,0.00032999,30]
[419181149,1775008262948,-500.0,0.00032999,30]
[419181150,1775008262958,-500.0,0.00032999,30]
[419181151,1775008262967,-500.0,0.00032999,30]
[419181152,1775008262978,-500.0,0.00032999,30]
[419181153,1775008262987,-500.0,0.00032999,30]
[419181154,1775008263002,-500.0,0.00032999,30]
[419181155,1775008263012,-500.0,0.00032999,30]
[419181156,1775008263022,-500.0,0.00032999,30]
[419181157,1775008263033,-500.0,0.00032999,30]
[419181158,1775008263044,-500.0,0.00032999,120]
[419181159,1775008263055,-500.0,0.00032999,120]
[419181160,1775008263065,-500.0,0.00032999,120]
[419181161,1775008263075,-500.0,0.00032999,120]
[419181162,1775008263085,-500.0,0.00032999,120]
[419181163,1775008263094,-500.0,0.00032999,120]
[419181164,1775008263104,-500.0,0.00032999,120]
[419181165,1775008263114,-500.0,0.00032999,120]
[419181166,1775008263124,-500.0,0.00032999,120]
[419181167,1775008263135,-500.0,0.00032999,120]
[419181168,1775008263145,-601.13,0.00032999,120]
[419181169,1775008263155,-500.0,0.00032999,120]
[419181170,1775008263164,-500.0,0.00032999,120]
[419181171,1775008263174,-500.0,0.00032999,120]
[419181172,1775008263184,-500.0,0.00032999,120]
[419181173,1775008263194,-500.0,0.00032999,120]
[419181174,1775008263204,-318.74104386,0.00032999,120]
[419181175,1775008263214,-151.0,0.00032999,7]
[419181176,1775008263224,-151.0,0.00032999,7]
[419181177,1775008263235,-151.0,0.00032999,7]
[419181178,1775008263245,-151.0,0.00032999,7]
[419181179,1775008263256,-151.0,0.00032999,7]
[419181180,1775008263266,-151.0,0.00032999,7]
[419181181,1775008263276,-198.782364,0.00032999,7]
[419181182,1775008263287,-151.0,0.00032999,7]
[419181183,1775008263297,-3000.0,0.00032999,2]
[419181184,1775008263307,-500.0,0.00032999,2]
[419181185,1775008263318,-500.0,0.00032999,2]
[419181186,1775008263328,-500.0,0.00032999,2]
[419181187,1775008263339,-500.0,0.00032999,2]
[419181188,1775008263349,-500.0,0.00032999,2]
[419181189,1775008263359,-500.0,0.00032999,2]
[419181190,1775008263370,-500.0,0.00032999,2]
[419181191,1775008263380,-635.64813742,0.00032999,2]
[419181192,1775008263391,-2500.0,0.00032999,2]
[419181193,1775008263401,-2500.0,0.00032999,2]
[419181194,1775008263411,-2500.0,0.00032999,2]
[419181195,1775008263421,-1402.81847652,0.00032999,2]
[419181196,1775008263431,-4715673.63228952,0.00033,120]
[419181197,1775008263457,-3916.32426582,0.00033,120]
[419181198,1775008263472,-9126.193165,0.00033,120]
[419181199,1775008263748,-151.0,0.00015971,2]
[419181200,1775008263758,-151.0,0.00015971,2]
[419181201,1775008263768,-151.0,0.00015971,2]
[419181202,1775008263777,-970.0623945,0.00027942,7]
[419181203,1775008263788,-450.3039075,0.00027942,7]
[419181204,1775008263798,-329.27259014,0.00027942,7]
[419181205,1775008263812,-22.07134986,0.00027942,7]
[419181206,1775008263822,-1388.0,0.0003,2]
[419181207,1775008263832,-487.38865018,0.00033,120]
[419181208,1775008263844,-310.80548823,0.00033,120]
[419181209,1775008263886,-151.0,0.00015971,2]
[419181210,1775008264360,-67895.00000001,0.00033,120]
[419181211,1775008264799,-7585.45020132,9.182e-05,2]
[419181212,1775008264811,-5547.40013359,9.182e-05,2]
[419181213,1775008264831,-204.19197398,9.182e-05,2]
[419181214,1775008264841,-458.29530695,0.00015901,2]
[419181215,1775008264851,-151.0,0.00015971,2]
[419181216,1775008264861,-151.0,0.00015971,2]
[419181217,1775008264872,-151.0,0.00015971,2]
[419181218,1775008264882,-151.0,0.00015971,2]
[419181219,1775008264891,-151.0,0.00015971,2]
[419181220,1775008264901,-151.0,0.00015971,2]
[419181221,1775008264910,-2000.0,0.00016001,2]
[419181222,1775008264920,-9823.92022254,0.00020033,2]
[419181223,1775008264930,-228.509955,0.00027942,7]
[419181224,1775008264939,-1420.366302,0.00027942,7]
[419181225,1775008264949,-351.34394,0.00027942,7]